Workbook

Sheet Лист1
A1: Школа | C1: МБОУ "Кутлушкинская ООШ" | F1: Утвердил: | G1: должность | H1: Директор
A2: Типовое примерное меню приготавливаемых блюд | G2: фамилия | H2: Шакирова
A3: Возрастная категория | E3: 7-11 лет | G3: дата | H3: 1 | I3: 9 | J3: 2023
H4: день | I4: месяц | J4: год
A5: Неделя | B5: День недели | C5: Прием пищи | D5: Раздел меню | E5: Блюда | F5: Вес блюда, г | G5: Белки | H5: Жиры | I5: Углеводы | J5: Калорийность | K5: № рецептуры | L5: Цена
A6: 1 | B6: 1 | C6: Завтрак | D6: гор.блюдо | E6: Мясо тушеное | F6: 100 | G6: 12 | H6: 6 | I6: 22 | J6: 196 | K6: №266 | L6: 43.26
D7: гарнир | E7: Каша гречневая рассыпчатая | F7: 150 | G7: 3 | H7: 8 | I7: 21 | J7: 193 | K7: №312 | L7: 10.82
D8: гор.напиток | E8: Чай с сахаром | F8: 215 | G8: 0 | H8: 0 | I8: 9 | J8: 40 | K8: №376 | L8: 1.12
D9: хлеб | E9: Хлеб ржаной (ржано-пшеничный) | F9: 30 | G9: 1 | H9: 0 | I9: 9 | J9: 35 | L9: 1.04
D10: хлеб | E10: Хлеб пшеничный | F10: 20 | G10: 2 | H10: 0 | I10: 15 | J10: 71 | L10: 1.50
D11: салат | E11: Плоды и ягоды свежие | F11: 100 | K11: №338 | L11: 19.00
D12: фрукты
D14: итого | F14: =SUM(F6:F13) -> 615 | G14: =SUM(G6:G13) -> 17.974 | H14: =SUM(H6:H13) -> 14.772 | I14: =SUM(I6:I13) -> 75.54 | J14: =SUM(J6:J13) -> 535 | L14: =SUM(L6:L13) -> 76.735
A15: =A6 -> 1 | B15: =B6 -> 1 | C15: Обед | D15: закуска
D16: 1 блюдо
D17: 2 блюдо
D18: гарнир
D19: напиток
D20: хлеб бел.
D21: хлеб черн.
D24: итого | F24: =SUM(F15:F23) -> 0 | G24: =SUM(G15:G23) -> 0 | H24: 0 | I24: 0 | J24: 0 | L24: =SUM(L15:L23) -> 0
A25: =A6 -> 1 | B25: =B6 -> 1 | C25: Итого за день: | F25: =F14+F24 -> 615 | G25: =G14+G24 -> 17.974 | H25: 14.772 | I25: 75.54 | J25: 535 | L25: =L14+L24 -> 76.735
A26: 1 | B26: 2 | C26: Завтрак | D26: гор.блюдо | E26: Плов из говядины | F26: 200 | G26: 14 | H26: 11 | I26: 14 | J26: 224 | K26: № 289 | L26: 51.95
F27: 150 | G27: 4 | H27: 5 | I27: 30 | J27: 210 | K27: №304 | L27: 6.97
D28: гор.напиток | E28: Какао с молоком | F28: 200 | G28: 4 | H28: 0 | I28: 26 | J28: 125 | K28: №382 | L28: 1.12
D29: хлеб | E29: Хлеб пшеничный | F29: 30 | G29: 71 | H29: 2 | I29: 0 | J29: 14 | L29: 2.04
D30: хлеб | E30: Хлеб ржаной (ржано-пшеничный) | F30: 20 | G30: 35 | H30: 1 | I30: 0 | J30: 7 | L30: 1.50
D31: фрукты
D32: салат | E32: Салат из свеклы отварной | F32: 60 | G32: 1 | H32: 4 | I32: 12 | J32: 56 | K32: №45 | L32: 3.84
D34: итого | F34: =SUM(F26:F33) -> 660 | G34: =SUM(G26:G33) -> 128.41 | H34: =SUM(H26:H33) -> 23.322 | I34: =SUM(I26:I33) -> 81.44 | J34: =SUM(J26:J33) -> 636 | L34: =SUM(L26:L33) -> 67.415
A35: =A26 -> 1 | B35: =B26 -> 2 | C35: Завтрак 2 | D35: фрукты
D38: итого | F38: =SUM(F35:F37) -> 0 | G38: =SUM(G35:G37) -> 0 | H38: =SUM(H35:H37) -> 0 | I38: =SUM(I35:I37) -> 0 | J38: =SUM(J35:J37) -> 0 | L38: =SUM(L35:L43) -> 0
A39: =A26 -> 1 | B39: =B26 -> 2 | C39: Обед | D39: закуска
D40: 1 блюдо
D41: 2 блюдо
D42: гарнир
D43: напиток
D44: хлеб бел.
D45: хлеб черн.
D48: итого | F48: =SUM(F39:F47) -> 0 | G48: =SUM(G39:G47) -> 0 | H48: =SUM(H39:H47) -> 0 | I48: =SUM(I39:I47) -> 0 | J48: =SUM(J39:J47) -> 0 | L48: =SUM(L45:L53) -> 0
A49: =A26 -> 1 | B49: =B26 -> 2 | C49: Полдник | D49: булочное
D50: напиток
D53: итого | F53: =SUM(F49:F52) -> 0 | G53: =SUM(G49:G52) -> 0 | H53: =SUM(H49:H52) -> 0 | I53: =SUM(I49:I52) -> 0 | J53: =SUM(J49:J52) -> 0 | L53: =SUM(L46:L52) -> 0
A54: =A26 -> 1 | B54: =B26 -> 2 | C54: Ужин | D54: гор.блюдо
D55: гарнир
D56: напиток
D57: хлеб
D60: итого | F60: =SUM(F54:F59) -> 0 | G60: =SUM(G54:G59) -> 0 | H60: =SUM(H54:H59) -> 0 | I60: =SUM(I54:I59) -> 0 | J60: =SUM(J54:J59) -> 0 | L60: =SUM(L54:L62) -> 0
A61: =A26 -> 1 | B61: =B26 -> 2 | C61: Ужин 2 | D61: кисломол.
D62: булочное
D63: напиток
D64: фрукты
D67: итого | F67: =SUM(F61:F66) -> 0 | G67: =SUM(G61:G66) -> 0 | H67: =SUM(H61:H66) -> 0 | I67: =SUM(I61:I66) -> 0 | J67: =SUM(J61:J66) -> 0 | L67: =SUM(L61:L69) -> 0
A68: =A26 -> 1 | B68: =B26 -> 2 | C68: Итого за день: | F68: =F34+F38+F48+F53+F60+F67 -> 660 | G68: =G34+G38+G48+G53+G60+G67 -> 128.41 | H68: =H34+H38+H48+H53+H60+H67 -> 23.322 | I68: =I34+I38+I48+I53+I60+I67 -> 81.44 | J68: =J34+J38+J48+J53+J60+J67 -> 636 | L68: =L34+L38+L48+L53+L60+L67 -> 0
A69: 1 | B69: 3 | C69: Завтрак | D69: гор.блюдо | E69: Фрикодельки в соусе | F69: 120 | G69: 8 | H69: 8 | I69: 3 | J69: 175 | K69: №280 | L69: 24.08
D70: гарнир | E70: Макаронные изделия с маслом | F70: 155 | G70: 5 | H70: 4 | I70: 28 | J70: 187 | K70: №171 | L70: 6.90
D71: гор.напиток | E71: Чай с лимоном | F71: 200/15/7 | G71: 0 | H71: 0 | I71: 15 | J71: 62 | K71: №377 | L71: 4.26
D72: хлеб | E72: Хлеб пшеничный | F72: 30 | G72: 1 | H72: 0 | I72: 7 | J72: 35 | L72: 2.04
D73: хлеб | E73: Хлеб ржаной (ржано-пшеничный) | F73: 20 | G73: 0 | H73: 0 | I73: 15 | J73: 62 | L73: 1.50
D74: фрукты | E74: Плоды и ягоды свежие | F74: 100 | G74: 1 | H74: 1 | I74: 12 | J74: 57 | L74: 20.00
D77: итого | F77: =SUM(F69:F76) -> 425 | G77: =SUM(G69:G76) -> 15.298 | H77: =SUM(H69:H76) -> 12.764 | I77: =SUM(I69:I76) -> 80.19 | J77: =SUM(J69:J76) -> 578 | L77: =SUM(L69:L76) -> 58.78
A78: =A69 -> 1 | B78: =B69 -> 3 | C78: Завтрак 2 | D78: фрукты
D81: итого | F81: =SUM(F78:F80) -> 0 | G81: =SUM(G78:G80) -> 0 | H81: =SUM(H78:H80) -> 0 | I81: =SUM(I78:I80) -> 0 | J81: =SUM(J78:J80) -> 0 | L81: =SUM(L78:L86) -> 0
A82: =A69 -> 1 | B82: =B69 -> 3 | C82: Обед | D82: закуска
D83: 1 блюдо
D84: 2 блюдо
D85: гарнир
D86: напиток
D87: хлеб бел.
D88: хлеб черн.
D91: итого | F91: =SUM(F82:F90) -> 0 | G91: =SUM(G82:G90) -> 0 | H91: =SUM(H82:H90) -> 0 | I91: =SUM(I82:I90) -> 0 | J91: =SUM(J82:J90) -> 0 | L91: =SUM(L88:L96) -> 0
A92: =A69 -> 1 | B92: =B69 -> 3 | C92: Полдник | D92: булочное
D93: напиток
D96: итого | F96: =SUM(F92:F95) -> 0 | G96: =SUM(G92:G95) -> 0 | H96: =SUM(H92:H95) -> 0 | I96: =SUM(I92:I95) -> 0 | J96: =SUM(J92:J95) -> 0 | L96: =SUM(L89:L95) -> 0
A97: =A69 -> 1 | B97: =B69 -> 3 | C97: Ужин | D97: гор.блюдо
D98: гарнир
D99: напиток
D100: хлеб
D103: итого | F103: =SUM(F97:F102) -> 0 | G103: =SUM(G97:G102) -> 0 | H103: =SUM(H97:H102) -> 0 | I103: =SUM(I97:I102) -> 0 | J103: =SUM(J97:J102) -> 0 | L103: =SUM(L97:L105) -> 0
A104: =A69 -> 1 | B104: =B69 -> 3 | C104: Ужин 2 | D104: кисломол.
D105: булочное
D106: напиток
D107: фрукты
D110: итого | F110: =SUM(F104:F109) -> 0 | G110: =SUM(G104:G109) -> 0 | H110: =SUM(H104:H109) -> 0 | I110: =SUM(I104:I109) -> 0 | J110: =SUM(J104:J109) -> 0 | L110: =SUM(L104:L112) -> 0
A111: =A69 -> 1 | B111: =B69 -> 3 | C111: Итого за день: | F111: =F77+F81+F91+F96+F103+F110 -> 425 | G111: =G77+G81+G91+G96+G103+G110 -> 15.298 | H111: =H77+H81+H91+H96+H103+H110 -> 12.764 | I111: =I77+I81+I91+I96+I103+I110 -> 80.19 | J111: =J77+J81+J91+J96+J103+J110 -> 578 | L111: =L77+L81+L91+L96+L103+L110 -> 0
A112: 1 | B112: 4 | C112: Завтрак | D112: гор.блюдо | E112: Котлеты рыбные | F112: 100 | G112: 6 | H112: 4 | I112: 7 | J112: 116 | K112: № 338 | L112: 34.29
D113: гарнир | E113: Пюре картофельное | F113: 150 | G113: 3 | H113: 8 | I113: 22 | J113: 172 | K113: №295 | L113: 22.50
D114: гор.напиток | E114: Чай с сахаром | F114: 200/15 | G114: 0 | H114: 0 | I114: 9 | J114: 40 | K114: №291 | L114: 5.63
D115: хлеб | E115: Хлеб пшеничный | F115: 30 | G115: 2 | H115: 0 | I115: 15 | J115: 71 | L115: 2.04
D116: хлеб | E116: Хлеб ржаной (ржано-пшеничный) | F116: 20 | G116: 1 | H116: 0 | I116: 9 | J116: 35 | L116: 1.10
D117: салат | E117: Салат из свеклы отварной | F117: 60 | G117: 1 | H117: 4 | I117: 12 | J117: 56 | K117: №45 | L117: 3.84
D118: фрукты
D121: итого | F121: =SUM(F112:F120) -> 360 | G121: =SUM(G112:G120) -> 13.614 | H121: =SUM(H112:H120) -> 16.04 | I121: =SUM(I112:I120) -> 73.73 | J121: =SUM(J112:J120) -> 490 | L121: =SUM(L112:L120) -> 69.4
A122: =A112 -> 1 | B122: =B112 -> 4 | C122: Завтрак 2 | D122: фрукты
D125: итого | F125: =SUM(F122:F124) -> 0 | G125: =SUM(G122:G124) -> 0 | H125: =SUM(H122:H124) -> 0 | I125: =SUM(I122:I124) -> 0 | J125: =SUM(J122:J124) -> 0 | L125: =SUM(L122:L130) -> 0
A126: =A112 -> 1 | B126: =B112 -> 4 | C126: Обед | D126: закуска
D127: 1 блюдо
D128: 2 блюдо
D129: гарнир
D130: напиток
D131: хлеб бел.
D132: хлеб черн.
D135: итого | F135: =SUM(F126:F134) -> 0 | G135: =SUM(G126:G134) -> 0 | H135: =SUM(H126:H134) -> 0 | I135: =SUM(I126:I134) -> 0 | J135: =SUM(J126:J134) -> 0 | L135: =SUM(L132:L140) -> 0
A136: =A112 -> 1 | B136: =B112 -> 4 | C136: Полдник | D136: булочное
D137: напиток
D140: итого | F140: =SUM(F136:F139) -> 0 | G140: =SUM(G136:G139) -> 0 | H140: =SUM(H136:H139) -> 0 | I140: =SUM(I136:I139) -> 0 | J140: =SUM(J136:J139) -> 0 | L140: =SUM(L133:L139) -> 0
A141: =A112 -> 1 | B141: =B112 -> 4 | C141: Ужин | D141: гор.блюдо
D142: гарнир
D143: напиток
D144: хлеб
D147: итого | F147: =SUM(F141:F146) -> 0 | G147: =SUM(G141:G146) -> 0 | H147: =SUM(H141:H146) -> 0 | I147: =SUM(I141:I146) -> 0 | J147: =SUM(J141:J146) -> 0 | L147: =SUM(L141:L149) -> 0
A148: =A112 -> 1 | B148: =B112 -> 4 | C148: Ужин 2 | D148: кисломол.
D149: булочное
D150: напиток
D151: фрукты
D154: итого | F154: =SUM(F148:F153) -> 0 | G154: =SUM(G148:G153) -> 0 | H154: =SUM(H148:H153) -> 0 | I154: =SUM(I148:I153) -> 0 | J154: =SUM(J148:J153) -> 0 | L154: =SUM(L148:L156) -> 0
A155: =A112 -> 1 | B155: =B112 -> 4 | C155: Итого за день: | F155: =F121+F125+F135+F140+F147+F154 -> 360 | G155: =G121+G125+G135+G140+G147+G154 -> 13.614 | H155: =H121+H125+H135+H140+H147+H154 -> 16.04 | I155: =I121+I125+I135+I140+I147+I154 -> 73.73 | J155: =J121+J125+J135+J140+J147+J154 -> 490 | L155: =L121+L125+L135+L140+L147+L154 -> 0
A156: 1 | B156: 5 | C156: Завтрак | D156: гор.блюдо | E156: Котлеты из птицы | F156: 100 | G156: 10 | H156: 5 | I156: 19 | J156: 159 | K156: № 338 | L156: 41.16
D157: гарнир | E157: Рис отварной | F157: 150 | G157: 3 | H157: 5 | I157: 29 | J157: 210 | K157: №268 | L157: 7.64
D158: гор.напиток | E158: Кофейный напиток | F158: 200 | G158: 3 | H158: 2 | I158: 29 | J158: 155 | K158: №378 | L158: 6.09
D159: хлеб | E159: Хлеб пшеничный | F159: 30 | G159: 2 | H159: 0 | I159: 15 | J159: 71 | L159: 2.04
D160: хлеб | E160: Хлеб ржаной (ржано-пшеничный) | F160: 20 | G160: 1 | H160: 0 | I160: 7 | J160: 35 | L160: 1.05
D161: фрукты | E161: Плоды и ягоды свежие | F161: 100 | G161: 1 | H161: 1 | I161: 12 | J161: 57 | L161: 19.00
D164: итого | F164: =SUM(F156:F163) -> 600 | G164: =SUM(G156:G163) -> 20.17 | H164: =SUM(H156:H163) -> 13.01 | I164: =SUM(I156:I163) -> 110.96 | J164: =SUM(J156:J163) -> 687 | L164: =SUM(L156:L163) -> 76.98
A165: =A156 -> 1 | B165: =B156 -> 5 | C165: Завтрак 2 | D165: фрукты
D168: итого | F168: =SUM(F165:F167) -> 0 | G168: =SUM(G165:G167) -> 0 | H168: =SUM(H165:H167) -> 0 | I168: =SUM(I165:I167) -> 0 | J168: =SUM(J165:J167) -> 0 | L168: =SUM(L165:L173) -> 0
A169: =A156 -> 1 | B169: =B156 -> 5 | C169: Обед | D169: закуска
D170: 1 блюдо
D171: 2 блюдо
D172: гарнир
D173: напиток
D174: хлеб бел.
D175: хлеб черн.
D178: итого | F178: =SUM(F169:F177) -> 0 | G178: =SUM(G169:G177) -> 0 | H178: =SUM(H169:H177) -> 0 | I178: =SUM(I169:I177) -> 0 | J178: =SUM(J169:J177) -> 0 | L178: =SUM(L175:L183) -> 0
A179: =A156 -> 1 | B179: =B156 -> 5 | C179: Полдник | D179: булочное
D180: напиток
D183: итого | F183: =SUM(F179:F182) -> 0 | G183: =SUM(G179:G182) -> 0 | H183: =SUM(H179:H182) -> 0 | I183: =SUM(I179:I182) -> 0 | J183: =SUM(J179:J182) -> 0 | L183: =SUM(L176:L182) -> 0
A184: =A156 -> 1 | B184: =B156 -> 5 | C184: Ужин | D184: гор.блюдо
D185: гарнир
D186: напиток
D187: хлеб
D190: итого | F190: =SUM(F184:F189) -> 0 | G190: =SUM(G184:G189) -> 0 | H190: =SUM(H184:H189) -> 0 | I190: =SUM(I184:I189) -> 0 | J190: =SUM(J184:J189) -> 0 | L190: =SUM(L184:L192) -> 0
A191: =A156 -> 1 | B191: =B156 -> 5 | C191: Ужин 2 | D191: кисломол.
D192: булочное
D193: напиток
D194: фрукты
D197: итого | F197: =SUM(F191:F196) -> 0 | G197: =SUM(G191:G196) -> 0 | H197: =SUM(H191:H196) -> 0 | I197: =SUM(I191:I196) -> 0 | J197: =SUM(J191:J196) -> 0 | L197: =SUM(L191:L199) -> 0
A198: =A156 -> 1 | B198: =B156 -> 5 | C198: Итого за день: | F198: =F164+F168+F178+F183+F190+F197 -> 600 | G198: =G164+G168+G178+G183+G190+G197 -> 20.17 | H198: =H164+H168+H178+H183+H190+H197 -> 13.01 | I198: =I164+I168+I178+I183+I190+I197 -> 110.96 | J198: =J164+J168+J178+J183+J190+J197 -> 687 | L198: =L164+L168+L178+L183+L190+L197 -> 0
A199: 1 | B199: 6 | C199: Завтрак | D199: гор.блюдо | E199: Рагу из птицы | F199: 200 | G199: 12 | H199: 17 | I199: 29 | J199: 313 | K199: №338 | L199: 38.45
D201: гор.напиток | E201: Чай сахаром | F201: 215 | G201: 1 | H201: 0 | I201: 9 | J201: 40 | K201: №378 | L201: 4.26
D202: хлеб | E202: Хлеб пшеничный | F202: 30 | G202: 2 | H202: 0 | I202: 15 | J202: 71 | L202: 2.04
D203: хлеб | E203: Хлеб дарницкий | F203: 20 | G203: 1 | H203: 0 | I203: 7 | J203: 35 | L203: 1.50
D204: фрукты | E204: Плоды и ягоды свежие | F204: 100 | G204: 1 | H204: 1 | I204: 10 | J204: 47 | L204: 12
D207: итого | F207: =SUM(F199:F206) -> 565 | G207: =SUM(G199:G206) -> 16.81 | H207: =SUM(H199:H206) -> 18.44 | I207: =SUM(I199:I206) -> 70.23 | J207: =SUM(J199:J206) -> 506 | L207: =SUM(L199:L206) -> 58.25
A208: =A199 -> 1 | B208: =B199 -> 6 | C208: Завтрак 2 | D208: фрукты
D211: итого | F211: =SUM(F208:F210) -> 0 | G211: =SUM(G208:G210) -> 0 | H211: =SUM(H208:H210) -> 0 | I211: =SUM(I208:I210) -> 0 | J211: =SUM(J208:J210) -> 0 | L211: =SUM(L208:L216) -> 0
A212: =A199 -> 1 | B212: =B199 -> 6 | C212: Обед | D212: закуска
D213: 1 блюдо
D214: 2 блюдо
D215: гарнир
D216: напиток
D217: хлеб бел.
D218: хлеб черн.
D221: итого | F221: =SUM(F212:F220) -> 0 | G221: =SUM(G212:G220) -> 0 | H221: =SUM(H212:H220) -> 0 | I221: =SUM(I212:I220) -> 0 | J221: =SUM(J212:J220) -> 0 | L221: =SUM(L218:L226) -> 0
A222: =A199 -> 1 | B222: =B199 -> 6 | C222: Полдник | D222: булочное
D223: напиток
D226: итого | F226: =SUM(F222:F225) -> 0 | G226: =SUM(G222:G225) -> 0 | H226: =SUM(H222:H225) -> 0 | I226: =SUM(I222:I225) -> 0 | J226: =SUM(J222:J225) -> 0 | L226: =SUM(L219:L225) -> 0
A227: =A199 -> 1 | B227: =B199 -> 6 | C227: Ужин | D227: гор.блюдо
D228: гарнир
D229: напиток
D230: хлеб
D233: итого | F233: =SUM(F227:F232) -> 0 | G233: =SUM(G227:G232) -> 0 | H233: =SUM(H227:H232) -> 0 | I233: =SUM(I227:I232) -> 0 | J233: =SUM(J227:J232) -> 0 | L233: =SUM(L227:L235) -> 0
A234: =A199 -> 1 | B234: =B199 -> 6 | C234: Ужин 2 | D234: кисломол.
D235: булочное
D236: напиток
D237: фрукты
D240: итого | F240: =SUM(F234:F239) -> 0 | G240: =SUM(G234:G239) -> 0 | H240: =SUM(H234:H239) -> 0 | I240: =SUM(I234:I239) -> 0 | J240: =SUM(J234:J239) -> 0 | L240: =SUM(L234:L242) -> 0
A241: =A199 -> 1 | B241: =B199 -> 6 | C241: Итого за день: | F241: =F207+F211+F221+F226+F233+F240 -> 565 | G241: =G207+G211+G221+G226+G233+G240 -> 16.81 | H241: =H207+H211+H221+H226+H233+H240 -> 18.44 | I241: =I207+I211+I221+I226+I233+I240 -> 70.23 | J241: =J207+J211+J221+J226+J233+J240 -> 506 | L241: =L207+L211+L221+L226+L233+L240 -> 0
A242: 1 | B242: 7 | C242: Завтрак | D242: гор.блюдо
D244: гор.напиток
D245: хлеб
D246: фрукты
D249: итого | F249: =SUM(F242:F248) -> 0 | G249: =SUM(G242:G248) -> 0 | H249: =SUM(H242:H248) -> 0 | I249: =SUM(I242:I248) -> 0 | J249: =SUM(J242:J248) -> 0 | L249: =SUM(L242:L248) -> 0
A250: =A242 -> 1 | B250: =B242 -> 7 | C250: Завтрак 2 | D250: фрукты
D253: итого | F253: =SUM(F250:F252) -> 0 | G253: =SUM(G250:G252) -> 0 | H253: =SUM(H250:H252) -> 0 | I253: =SUM(I250:I252) -> 0 | J253: =SUM(J250:J252) -> 0 | L253: =SUM(L250:L258) -> 0
A254: =A242 -> 1 | B254: =B242 -> 7 | C254: Обед | D254: закуска
D255: 1 блюдо
D256: 2 блюдо
D257: гарнир
D258: напиток
D259: хлеб бел.
D260: хлеб черн.
D263: итого | F263: =SUM(F254:F262) -> 0 | G263: =SUM(G254:G262) -> 0 | H263: =SUM(H254:H262) -> 0 | I263: =SUM(I254:I262) -> 0 | J263: =SUM(J254:J262) -> 0 | L263: =SUM(L260:L268) -> 0
A264: =A242 -> 1 | B264: =B242 -> 7 | C264: Полдник | D264: булочное
D265: напиток
D268: итого | F268: =SUM(F264:F267) -> 0 | G268: =SUM(G264:G267) -> 0 | H268: =SUM(H264:H267) -> 0 | I268: =SUM(I264:I267) -> 0 | J268: =SUM(J264:J267) -> 0 | L268: =SUM(L261:L267) -> 0
A269: =A242 -> 1 | B269: =B242 -> 7 | C269: Ужин | D269: гор.блюдо
D270: гарнир
D271: напиток
D272: хлеб
... 223 more rows
